Cogmind - Beta 16 @@@ ROGUE MODE // 2026.01.03 @ 02:54:43 Player: Bity Result: Destroyed by S-43 Plague with Heavy Machine Gun Performance ------------- Evolutions (8) 4000 Regions Visited (14) 2800 Robots Destroyed (89) 445 Value Destroyed (3260) 3260 Prototype IDs (15) 300 Alien Tech Used (0) 0 Bonus (5738) 5738 TOTAL SCORE: 16543 Bonus ------- High Alert Combat Kills 12 Follower Combat Kills 1663 Network Hubs Disabled 200 Registered with UFD 300 Met Optimus in HQ 500 Built Enhanced Grunts 300 A7 Reached Mainframe 300 Met R17 at Cetus 500 Met R17 at Research 2000 Friendly Fire -37 Cogmind --------- Core Integrity 0/1450 Matter 104/300 Energy 21/100 System Corruption 11% Temperature Cool (0) Movement Core (50) Location -2/Research Parts ------- > --- POWER (2) -------- (None) > --- PROPULSION (9) --- (None) > --- UTILITY (10) ----- (None) > --- WEAPON (2) ------- (None) > --- INVENTORY (5) ---- Quantum Capacitor System Shield Heavy Linear Accelerator Peak State ------------ > --- POWER ------------ Micro Antimatter Reactor Light Quantum Reactor > --- PROPULSION ------- Improved Antigrav System Improved Antigrav System Cooled Antigrav System Combat Linear Gravjet Xenon Bombardment Thruster Xenon Bombardment Thruster Cooled Field Propulsion Drive Cooled Field Propulsion Drive Q-thruster > --- UTILITY ---------- Advanced Power Amplifier Advanced Heat Sink Large Storage Unit Advanced Weight Redist. System Spectral Analyzer Advanced Signal Interpreter Improved Melee Analysis Suite Advanced Melee Analysis Suite Advanced Transmission Jammer Advanced Hacking Suite > --- WEAPON ----------- Micro-nuke Launcher Companion Sword > --- INVENTORY -------- Improved Fusion Compressor Gravmag Array Quantum Capacitor Experimental Actuator Array System Shield Heavy Linear Accelerator Advanced Remote Datajack [Rating: 152] Favorites ----------- Power Angular Momentum Engine Engine Angular Momentum Engine Power Core Light Fission Core Reactor Micro Antimatter Reactor Propulsion Carbon-fiber Leg Treads Improved Medium Treads Leg Carbon-fiber Leg Wheel Wheel Hover Unit Gyrokinetic Inverter Flight Unit Flight Unit Utility Large Storage Unit Device Advanced Weight Redist. System Storage Large Storage Unit Processor Advanced Melee Analysis Suite Hackware Improved Hacking Suite Weapon Companion Sword Energy Gun EM Pulse Gun Energy Cannon Heavy Plasma Cannon Ballistic Gun Advanced KE Penetrator Ballistic Cannon Heavy Linear Accelerator Launcher Shock Bomb Launcher Special Weapon Advanced Remote Datajack Slashing Weapon Companion Sword Build | -11 -10 -10 -9 -6 -6 -6 -6 -6 -5 -4 -4 -4 -3 -2 ------- Run | Yrd Mat Sub Scr Fac Ext Cet Arc Hub Fac Fac Upp Upp Res Res Slots Evolved 16 | . . . . 8 . . . . 2 2 . . 2 2 Power 1 | . . . . 1 . . . . . . . . . . Propulsion 7 | . . . . 5 . . . . 1 . . . . 1 Utility 8 | . . . . 2 . . . . 1 2 . . 2 1 Weapon . | . . . . . . . . . . . . . . . Parts Attached 173 | 1 3 . 9 26 22 14 5 4 31 11 1 2 24 20 Power 20 | . . . . 4 3 1 . . 6 1 . . 1 4 Engine 8 | . . . . 2 3 . . . 3 . . . . . Core 6 | . . . . 2 . . . . 2 . . . . 2 Reactor 6 | . . . . . . 1 . . 1 1 . . 1 2 Propulsion 94 | . 2 . 3 17 14 10 3 . 18 3 . 2 14 8 Treads 3 | . . . . 1 . 1 . . . . . 1 . . Leg 31 | . . . . 1 12 9 3 . . 2 . 1 . 3 Wheel 2 | . 2 . . . . . . . . . . . . . Hover 37 | . . . 2 10 1 . . . 16 1 . . 3 4 Flight 21 | . . . 1 5 1 . . . 2 . . . 11 1 Utility 47 | 1 1 . 3 5 3 1 2 2 6 6 1 . 9 7 Device 32 | 1 . . 1 2 . 1 2 1 6 6 1 . 4 7 Storage 5 | . 1 . 2 . 1 . . . . . . . 1 . Processor 8 | . . . . 3 1 . . 1 . . . . 3 . Hackware 2 | . . . . . 1 . . . . . . . 1 . Protection . | . . . . . . . . . . . . . . . Artifact . | . . . . . . . . . . . . . . . Weapon 12 | . . . 3 . 2 2 . 2 1 1 . . . 1 Energy Gun 3 | . . . 2 . . 1 . . . . . . . . Energy Cannon 3 | . . . . . 2 . . 1 . . . . . . Ballistic Gun 1 | . . . . . . 1 . . . . . . . . Ballistic Cannon 1 | . . . . . . . . . . . . . . 1 Launcher 2 | . . . . . . . . 1 . 1 . . . . Special Weapon 1 | . . . . . . . . . 1 . . . . . Impact Weapon . | . . . . . . . . . . . . . . . Slashing Weapon 1 | . . . 1 . . . . . . . . . . . Piercing Weapon . | . . . . . . . . . . . . . . . Special Melee Weapon . | . . . . . . . . . . . . . . . Unidentified Prototypes 14 | . . . 1 1 . 3 1 2 3 . . . 3 . Parts Lost 75 | . . . . 4 15 4 1 4 1 6 2 1 3 34 Power 8 | . . . . . 3 . . 1 . . 1 . . 3 Propulsion 46 | . . . . 3 12 3 1 3 1 4 . 1 1 17 Utility 19 | . . . . 1 . 1 . . . 2 1 . 2 12 Weapon 2 | . . . . . . . . . . . . . . 2 Highest Loss Streak 22 | . . . . 2 5 4 1 3 1 3 2 1 1 22 To Critical Strikes 1 | . . . . . 1 . . . . . . . . . Average Backups 14 | 7 8 18 20 12 13 13 13 13 13 13 13 13 13 9 Power 1 | 1 2 2 1 3 1 1 1 1 . 1 . . . . Propulsion 4 | 4 5 8 8 3 5 4 3 5 4 2 1 . 2 2 Utility 5 | . . 2 3 3 5 4 5 5 6 6 8 10 7 3 Weapon 2 | 1 1 4 6 1 1 2 2 1 . 1 2 2 1 1 Tool/Special . | . . . . . . . . . . . . . . . Unused Backups 52 | 1 2 1 19 4 3 3 2 1 4 1 4 . 5 2 Power 6 | 1 . . 2 1 1 . . . . 1 . . . . Propulsion 14 | . . . 6 . . 3 1 . . . 4 . . . Utility 18 | . 2 . 3 1 2 . . 1 2 . . . 5 2 Weapon 10 | . . 1 7 1 . . 1 . . . . . . . Tool/Special 4 | . . . 1 1 . . . . 2 . . . . . Average Slot Usage (%) 91 | . 100 100 98 82 88 92 93 93 92 86 90 93 90 84 Engine 7 | . 14 14 14 3 8 6 6 6 5 1 2 5 4 1 Reactor 2 | . . . . . . 5 6 5 1 8 7 5 3 5 Leg 12 | . 5 . . . 35 45 45 44 . . 2 8 . . Wheel 5 | . 22 28 23 . . . . . . . . . . . Hover 13 | . . . 4 16 6 . . . 39 28 26 26 23 9 Flight 5 | . . . . 26 . . . . 2 5 10 5 9 22 Device 12 | . 14 14 14 10 3 5 6 6 10 20 20 21 22 15 Storage 7 | . 14 14 14 6 6 6 6 6 5 5 5 5 4 3 Processor 7 | . . . . 4 8 6 6 10 11 10 10 10 13 16 Hackware 1 | . . . . . 5 6 6 1 . . . . . 3 Energy Gun 6 | . 28 28 25 . . . . . . . . . . . Slashing Weapon 4 | . . . . 6 6 6 6 6 5 5 4 5 4 3 Peak Build Rating 152 | 7 8 10 15 65 82 80 74 78 96 111 106 104 139 152 Average Rating 66 | 6 7 9 11 37 70 69 72 72 78 95 100 102 127 133 On Entrance 60 | 6 7 8 10 15 65 68 70 74 52 94 100 104 104 137 Avg Prop Armor Cover (%) 7 | . . . 7 15 3 . . . 4 7 7 15 6 8 Naked Turns 1 | . . . . . . . . . . . . . . 1 Heaviest Build 90 | 15 90 90 90 39 54 64 64 65 64 60 58 48 54 63 Greatest Support 164 | 20 20 20 20 75 164 130 136 136 94 68 68 68 103 66 Greatest Overweight (x) 8 | . 4 4 8 3 1 . . . 4 2 . 1 4 2 Average Overweight (x) . | . 3 4 3 1 . . . . . . . . . . Largest Inventory Capacity 25 | 8 25 25 25 15 15 15 15 15 15 15 15 15 15 15 Average Capacity 16 | 8 23 25 23 15 15 15 15 15 15 15 15 15 15 14 Most Carried 25 | 8 9 25 25 15 15 15 15 15 15 15 15 15 15 15 Average Carried 15 | 7 8 20 22 13 14 14 14 14 14 14 14 15 14 10 Final Capacity 25 | 8 25 25 15 15 15 15 15 15 15 15 15 15 15 5 Final Carried 25 | 8 9 25 15 15 15 15 15 15 15 15 15 15 15 5 Class Distribution -------------------- 46% | Scavenger-Mutant 33% | Mutant 14% | Commander-Mutant Dominant Class ---------------- Mutant | -10/Materials Mutant | -10/Subcaves Mutant | -9/Scraptown Mutant | -6/Factory Commander-Mutant | -6/Extension Scavenger-Mutant | -6/Cetus Scavenger-Mutant | -6/Archives Scavenger-Mutant | -6/Hub_04(d) Scavenger-Mutant | -5/Factory Scavenger-Mutant | -4/Factory Scavenger-Mutant | -4/Upper Caves Scavenger-Mutant | -4/Upper Caves Scavenger-Mutant | -3/Research Scavenger-Mutant | -2/Research Resources | -11 -10 -10 -9 -6 -6 -6 -6 -6 -5 -4 -4 -4 -3 -2 ----------- Run | Yrd Mat Sub Scr Fac Ext Cet Arc Hub Fac Fac Upp Upp Res Res Matter Collected 3051 | 210 30 . 90 355 308 174 67 22 518 261 172 50 515 279 Remotely . | . . . . . . . . . . . . . . . Salvage Created 4967 | 153 . 108 . 647 959 172 220 206 628 788 249 57 378 402 Parts 243 | 11 . 4 . 25 36 10 11 10 41 37 15 3 15 25 Haulers Intercepted 3 | . . . . . 1 . . . 1 . . . 1 . Recyclers Shooed . | . . . . . . . . . . . . . . . Parts Field Recycled . | . . . . . . . . . . . . . . . Retrieved Matter . | . . . . . . . . . . . . . . . Parts Self-Destructed 22 | . . 3 . . . . . . . . 12 7 . . Prevented 1 | . . . . . . . . . . . . 1 . . Parts Restored . | . . . . . . . . . . . . . . . Kills | -11 -10 -10 -9 -6 -6 -6 -6 -6 -5 -4 -4 -4 -3 -2 ------- Run | Yrd Mat Sub Scr Fac Ext Cet Arc Hub Fac Fac Upp Upp Res Res Combat Hostiles Destroyed 47 | . . 2 . 5 11 3 . . 3 7 7 1 1 7 Melee 36 | . . . . 5 10 1 . . 3 7 5 1 1 3 Guns 4 | . . 2 . . . 2 . . . . . . . . Cannons 2 | . . . . . 1 . . . . . . . . 1 AOE 5 | . . . . . . . . . . . 2 . . 3 Classes Destroyed 16 | 2 . 1 . 3 5 . 1 1 . . 2 . 1 . Worker 7 | . . . . 4 . . . . 1 1 . . . 1 Builder 4 | . . . . . 1 . . . . 1 . . . 2 Tunneler 4 | 3 . . . . . . . . 1 . . . . . Hauler 3 | . . . . . 1 . . . 1 . . . 1 . Recycler 10 | 1 . . . 2 1 . . . 2 2 . . 1 1 Minesweeper 1 | . . . . . . . . . . . 1 . . . Mechanic 2 | . . . . . . . . . . . . . 1 1 Operator 4 | . . . . . . . 3 . 1 . . . . . Watcher 4 | . . . . . . . . 1 1 1 . . 1 . Swarmer 11 | . . . . . . . . . . . 5 . 1 5 Grunt 15 | . . . . . 6 3 . . . 4 1 1 . . Duelist 1 | . . . . . 1 . . . . . . . . . Sentry 8 | . . . . 4 3 . . . . . 1 . . . Hunter 2 | . . . . . 1 . . . . 1 . . . . Programmer 8 | . . . . 1 . . . . 3 2 . . . 2 Enhanced Grunt 3 | . . . . . . . 1 2 . . . . . . Subdweller 2 | . . 2 . . . . . . . . . . . . Best Kill Streak 8 | 2 . 2 . 6 5 3 2 1 2 5 4 1 1 8 Combat Bots Only 4 | . . 2 . 2 4 3 . . 2 2 4 1 1 4 Max Kills in Single Turn 2 | 1 . 1 . 1 1 1 1 1 1 1 2 1 1 2 Gunslinging . | . . . . . . . . . . . . . . . Exploded 2 | . . . . . . . . . . . 2 . . 1 Melee 1 | . . . . 1 1 1 . . 1 1 1 1 1 1 Uniques/NPCs Destroyed . | . . . . . . . . . . . . . . . Combat | -11 -10 -10 -9 -6 -6 -6 -6 -6 -5 -4 -4 -4 -3 -2 -------- Run | Yrd Mat Sub Scr Fac Ext Cet Arc Hub Fac Fac Upp Upp Res Res Hostile Shots Fired 886 | . . 4 . 96 201 36 7 36 15 114 22 10 22 323 Missed 314 | . . 2 . 41 62 8 3 13 5 41 5 2 7 125 Hits 572 | . . 2 . 55 139 28 4 23 10 73 17 8 15 198 Melee 4 | . . . . . 4 . . . . . . . . . Projectile 568 | . . 2 . 55 135 28 4 23 10 73 17 8 15 198 Critical Strikes 22 | . . . . . 3 6 1 3 . 3 . . . 6 Part Disruptions 2 | . . . . . . . . . . . . . . 2 Damage Taken 10403 | . . 40 . 444 1664 711 94 808 252 1177 240 182 380 4411 Core 2596 | . . 19 . 93 305 25 23 164 74 254 62 61 52 1464 Absorbed by Shields 473 | . . . . . 307 117 . . . . . . . 49 Ignored by Resistances 224 | . . . . . . 9 12 . . 133 . . 70 . Regen/Repaired (Parts) 70 | . . . . . . . . . 3 67 . . . . Core Remaining (%) 79 | 100 . . 92 . . . . 28 92 . . 67 96 . Volleys Fired 60 | 11 . 5 . . 12 3 4 4 4 3 2 . . 12 Largest 2 | 2 . 2 . . 1 1 1 1 1 1 1 . . 1 Hottest 90 | 80 . 80 . . 90 35 35 36 35 49 49 . . 70 Shots Fired 76 | 22 . 10 . . 12 3 4 4 4 3 2 . . 12 Gun 43 | 22 . 10 . . . 3 4 . 4 . . . . . Cannon 15 | . . . . . 12 . . . . . . . . 3 Launcher 16 | . . . . . . . . 4 . 1 2 . . 9 Special 2 | . . . . . . . . . . 2 . . . . Kinetic 14 | . . . . . . 3 4 . 4 . . . . 3 Thermal 10 | . . . . . 10 . . . . . . . . . Explosive 12 | . . . . . . . . . . 1 2 . . 9 Electromagnetic 38 | 22 . 10 . . 2 . . 4 . . . . . . Robot Hit Streak 9 | 3 . 5 . . 6 9 2 . . 1 . . . 1 Robot Miss Streak 4 | 4 . 1 . . . . 1 2 . 1 . . . 2 Penetration Max . | . . . . . . . . . . . . . . . Secondary Targets . | . . . . . . . . . . . . . . . Shots Hit Robots 217 | 11 . 7 . 20 52 9 8 2 11 37 11 6 16 27 Core Hits 121 | 5 . 4 . 8 18 6 4 8 9 15 10 1 6 27 Critical Kills 2 | . . . . . . 1 1 . . . . . . . Critical Parts Destroyed 1 | . . . . . . . 1 . . . . . . . Critical Strikes 21 | . . . . . 8 3 2 . . 4 . . 2 2 Destroy 3 | . . . . . . 1 2 . . . . . . . Melee Attacks 280 | . . . . 25 70 14 8 3 26 49 13 9 20 43 Impact . | . . . . . . . . . . . . . . . Slashing 280 | . . . . 25 70 14 8 3 26 49 13 9 20 43 Piercing . | . . . . . . . . . . . . . . . Sneak Attacks 32 | . . . . 7 6 . 4 . 4 4 2 . 3 2 Combat Hostiles 1 | . . . . . . . . . . . . . . 1 Follow-up Attacks 2 | . . . . . 1 . . . . . . . . 1 Damage Inflicted 12967 | 182 . 77 . 1146 2533 353 609 507 816 1941 785 268 855 2895 Guns 376 | 141 . 77 . . . 78 80 . . . . . . . Cannons 128 | . . . . . 33 . . . . . . . . 95 Explosions 2528 | 41 . . . . . . . 412 155 97 232 . . 1591 Melee 9915 | . . . . 1146 2480 275 529 95 661 1844 553 268 855 1209 Ramming 20 | . . . . . 20 . . . . . . . . . Kinetic 253 | . . . . . . 78 80 . . . . . . 95 Thermal 273 | 41 . . . . 33 . . 44 155 . . . . . Explosive 1920 | . . . . . . . . . . 97 232 . . 1591 Electromagnetic 586 | 141 . 77 . . . . . 368 . . . . . . Impact . | . . . . . . . . . . . . . . . Slashing 9915 | . . . . 1146 2480 275 529 95 661 1844 553 268 855 1209 Piercing . | . . . . . . . . . . . . . . . Highest Corruption 12 | . . . . 1 3 4 4 4 2 1 1 . 2 12 Average Corruption 2 | . . . . 1 1 3 3 2 1 1 1 . 2 5 Corruption Purged 21 | . . . . . . . 4 4 . . 1 . . 12 Corruption Blocked . | . . . . . . . . . . . . . . . Effects 60 | . . . . . 19 12 5 3 3 4 2 . . 12 Message Errors 10 | . . . . . 6 . 1 . 1 . 1 . . 1 Matter Fused 19 | . . . . . 7 4 . 2 1 1 1 . . 3 Heat Flow Errors 7 | . . . . . 1 2 2 . . 2 . . . . Energy Discharges 9 | . . . . . . 3 1 . 1 . . . . 4 Parts Rejected 1 | . . . . . . . . 1 . . . . . . Data Loss (minor) 8 | . . . . . 4 1 . . . . . . . 3 Data Loss (major) 4 | . . . . . 1 1 . . . 1 . . . 1 Alerts 2 | . . . . . . 1 1 . . . . . . . Overload Shots . | . . . . . . . . . . . . . . . Overflow Damage 1492 | . . . . 265 204 . 205 58 140 246 104 . 123 147 Projectiles . | . . . . . . . . . . . . . . . Explosions 179 | . . . . . . . . 58 45 . . . . 76 Melee 1313 | . . . . 265 204 . 205 . 95 246 104 . 123 71 Knockbacks . | . . . . . . . . . . . . . . . Impact . | . . . . . . . . . . . . . . . Kinetic . | . . . . . . . . . . . . . . . Secondary . | . . . . . . . . . . . . . . . Self-Inflicted Damage 139 | . . . . . 10 . . 99 25 . . . . 5 Shots 4 | . . . . . . . . 2 1 . . . . 1 Rammed 1 | . . . . . 1 . . . . . . . . . Targets Rammed 1 | . . . . . 1 . . . . . . . . . Kicked . | . . . . . . . . . . . . . . . Crushed . | . . . . . . . . . . . . . . . Highest Temperature 501 | 90 . . . 2 297 259 261 2 501 58 . . 350 94 Average Temperature 133 | 35 . . . 2 96 84 104 1 172 43 . . 100 34 Received Heat Transfer 1041 | . . 6 . 102 507 141 18 42 . 165 . 51 . 9 Effects 11 | . . . . . 2 . . . 8 . . . 1 . Shutdowns 1 | . . . . . . . . . 1 . . . . . Energy Bleed 2 | . . . . . . . . . 2 . . . . . Interference 5 | . . . . . 2 . . . 3 . . . . . Damage (minor) 3 | . . . . . . . . . 2 . . . 1 . Siege Activations . | . . . . . . . . . . . . . . . Martial Activations . | . . . . . . . . . . . . . . . Shielding Activations . | . . . . . . . . . . . . . . . Robots Disrupted 1 | . . . . . . . . . . . . . . 1 Combat Hostiles 1 | . . . . . . . . . . . . . . 1 Robots Corrupted 2 | . . . . . . . . 2 . . . . . . Combat Hostiles . | . . . . . . . . . . . . . . . Parts Fried 6 | 2 . . . . . . . 4 . . . . . . Impact Corruptions . | . . . . . . . . . . . . . . . Robots Melted . | . . . . . . . . . . . . . . . Combat Hostiles . | . . . . . . . . . . . . . . . Parts Melted 2 | . . 1 . . . . . . 1 . . . . . Heat Transferred 300 | 50 . . . . 50 . . 100 100 . . . . . Parts Sabotaged . | . . . . . . . . . . . . . . . Parts Stolen . | . . . . . . . . . . . . . . . Parts Stripped . | . . . . . . . . . . . . . . . Power Chain Reactions 3 | 1 . . . . . . . 2 . . . . . . Alert | -11 -10 -10 -9 -6 -6 -6 -6 -6 -5 -4 -4 -4 -3 -2 ------- Run | Yrd Mat Sub Scr Fac Ext Cet Arc Hub Fac Fac Upp Upp Res Res Maximum Alert Level 2 | . . . . . 2 2 1 1 . . . . . 1 Low Security (%) 76 | 100 100 . . 100 51 5 33 91 100 100 . . 100 91 Level 1 11 | . . . . . 9 49 66 8 . . . . . 8 Level 2 12 | . . . . . 38 44 . . . . . . . . Level 3 . | . . . . . . . . . . . . . . . Level 4 . | . . . . . . . . . . . . . . . Level 5 . | . . . . . . . . . . . . . . . High Security . | . . . . . . . . . . . . . . . Max Security . | . . . . . . . . . . . . . . . Peak Influence 602 | 5 . . . 73 602 493 294 295 127 133 . . 69 325 Initial 312 | . . . . . 32 312 155 57 101 29 . . . 29 Average 122 | 2 . . . 12 274 351 219 56 23 51 . . 10 42 Influence Increases 4725 | 20 . . . 222 1419 571 219 558 389 370 155 20 151 631 Destroy 0b10 Robot/C 1780 | . . . . 100 640 280 80 120 60 140 140 20 20 180 Destroy 0b10 Robot/NC 265 | 20 . . . 30 30 10 20 35 35 25 5 . 20 35 Destroy Leader 274 | . . . . 50 66 20 . 46 24 32 10 . 4 22 Allied During Kill 986 | . . . . . 523 178 100 179 . . . . . 6 Successful Hack 309 | . . . . 24 67 28 . 19 60 59 . . . 52 Disable Machine 270 | . . . . 15 45 15 15 45 60 15 . . 15 45 Destroy Structure 481 | . . . . 3 18 10 4 114 90 24 . . 2 216 Partial Spotted 90 | . . . . . . . . . 30 15 . . 15 30 Lose Combat Pursuer 270 | . . . . . 30 30 . . 30 60 . . 75 45 Influence Decreases 4605 | 20 . . . 155 927 741 444 514 537 430 155 20 98 564 Entered New Map 785 | . . . . . 35 247 234 107 107 31 . . . 24 Time Decay 2500 | 20 . . . 154 568 334 180 137 290 354 135 20 88 220 Lost Part 585 | . . . . 1 119 40 10 40 . 45 20 . 10 300 Lost Ally 459 | . . . . . 205 120 20 80 14 . . . . 20 Purge Threat 276 | . . . . . . . . 150 126 . . . . . Squads Dispatched 27 | . 3 . . 2 3 2 . . 4 6 . . 1 6 Investigation 13 | . 1 . . . 3 2 . . 1 3 . . 1 2 Extermination 8 | . . . . 1 . . . . 2 2 . . . 3 Reinforcement 6 | . 2 . . 1 . . . . 1 1 . . . 1 Assault . | . . . . . . . . . . . . . . . Garrison . | . . . . . . . . . . . . . . . Intercept . | . . . . . . . . . . . . . . . Searches Triggered . | . . . . . . . . . . . . . . . Construction Impeded 1 | . . . . . . . . . . . . . . 1 Haulers Reinforced . | . . . . . . . . . . . . . . . Active Scanning Responses . | . . . . . . . . . . . . . . . Cargo Convoy Interrupts . | . . . . . . . . . . . . . . . Stealth | -11 -10 -10 -9 -6 -6 -6 -6 -6 -5 -4 -4 -4 -3 -2 --------- Run | Yrd Mat Sub Scr Fac Ext Cet Arc Hub Fac Fac Upp Upp Res Res Distress Signals 21 | . 1 . . . 4 2 . 3 . 4 . . 6 1 Communications Jammed 4 | . . . . . . . . . . 2 . . . 2 Distress Signals 4 | . . . . . . . . . . 2 . . . 2 Times Spotted 168 | . . 4 . 7 37 13 14 11 9 19 7 3 15 29 Peak Tracking Total 12 | . 2 2 . 2 5 6 2 5 2 6 3 3 5 12 Tactical Retreats 11 | . . . . . 2 1 . . 2 2 . . 2 2 Traps | -11 -10 -10 -9 -6 -6 -6 -6 -6 -5 -4 -4 -4 -3 -2 ------- Run | Yrd Mat Sub Scr Fac Ext Cet Arc Hub Fac Fac Upp Upp Res Res Traps Triggered 9 | . . . . . 3 . . 2 . . . . 4 . Indirectly . | . . . . . . . . . . . . . . . Trap Hack Attempts . | . . . . . . . . . . . . . . . Triggered . | . . . . . . . . . . . . . . . Disarmed . | . . . . . . . . . . . . . . . Reprogrammed . | . . . . . . . . . . . . . . . Reused . | . . . . . . . . . . . . . . . Traps Extracted . | . . . . . . . . . . . . . . . Installed . | . . . . . . . . . . . . . . . Triggered . | . . . . . . . . . . . . . . . Machines | -11 -10 -10 -9 -6 -6 -6 -6 -6 -5 -4 -4 -4 -3 -2 ---------- Run | Yrd Mat Sub Scr Fac Ext Cet Arc Hub Fac Fac Upp Upp Res Res Machines Disabled 20 | . . . . 1 4 2 1 3 4 1 . . 1 3 Max in Single Turn 4 | . . . . 1 1 1 1 2 4 1 . . 1 1 Network Hub 1 | . . . . . . . . 1 . . . . . . Machines Repaired . | . . . . . . . . . . . . . . . Machines Dismantled . | . . . . . . . . . . . . . . . Machines Sabotaged . | . . . . . . . . . . . . . . . Overloaded Fab Kills . | . . . . . . . . . . . . . . . Hacking | -11 -10 -10 -9 -6 -6 -6 -6 -6 -5 -4 -4 -4 -3 -2 --------- Run | Yrd Mat Sub Scr Fac Ext Cet Arc Hub Fac Fac Upp Upp Res Res Machines Accessed 54 | . 1 . 6 5 10 3 1 3 8 5 . . 4 8 Terminals 35 | . 1 . . 3 10 3 . 3 5 2 . . 3 5 Fabricators 4 | . . . . 1 . . . . . 1 . . . 2 Repair Stations 2 | . . . . . . . . . 1 1 . . . . Recycling Units 4 | . . . . . . . . . 2 1 . . 1 . Scanalyzers 2 | . . . . 1 . . . . . . . . . 1 Garrison Access . | . . . . . . . . . . . . . . . Total Hacks 227 | . 3 . 35 13 27 10 25 9 37 27 . . 12 29 Successful 130 | . 1 . 35 8 11 5 25 4 18 9 . . . 14 Failed 96 | . 2 . . 4 16 5 . 5 19 18 . . 12 15 Catastrophic 19 | . 1 . . 1 1 . . 2 5 3 . . 2 4 Database Lockouts 1 | . . . . 1 . . . . . . . . . . Manual 99 | . 3 . . 8 7 2 2 8 24 19 . . 12 14 Terminals 132 | . 3 . . 8 27 10 . 9 31 13 . . 10 21 Fabricators 12 | . . . . 1 . . . . . 6 . . . 5 Repair Stations 7 | . . . . . . . . . 3 4 . . . . Recycling Units 9 | . . . . . . . . . 3 4 . . 2 . Scanalyzers 7 | . . . . 4 . . . . . . . . . 3 Garrison Access . | . . . . . . . . . . . . . . . Terminal Hacks 88 | . . . 35 2 7 5 25 2 7 1 . . . 4 Record 58 | . . . 28 1 . 4 25 . . . . . . . Robot Analysis 6 | . . . 6 . . . . . . . . . . . Open Door 7 | . . . 1 . 5 1 . . . . . . . . Level Access Points 1 | . . . . . . . . . . . . . . 1 Branch Access Points 2 | . . . . . 1 . . . 1 . . . . . Terminal Index 5 | . . . . 1 1 . . . 1 1 . . . 1 Unreport Threat 3 | . . . . . . . . 1 2 . . . . . Surveillance Status 1 | . . . . . . . . . . . . . . 1 Recall Investigation 1 | . . . . . . . . . 1 . . . . . Recall Reinforcements 1 | . . . . . . . . . 1 . . . . . Registered Components 1 | . . . . . . . . . . . . . . 1 Zone Layout 2 | . . . . . . . . 1 1 . . . . . Fabricator Hacks 5 | . . . . 1 . . . . . 1 . . . 3 Network Status 4 | . . . . 1 . . . . . 1 . . . 2 Build 1 | . . . . . . . . . . . . . . 1 Repair Station Hacks 4 | . . . . . . . . . 2 2 . . . . Scan Component 2 | . . . . . . . . . 1 1 . . . . Repair 2 | . . . . . . . . . 1 1 . . . . Recycling Unit Hacks . | . . . . . . . . . . . . . . . Scanalyzer 4 | . . . . 3 . . . . . . . . . 1 Retrieve Study 4 | . . . . 3 . . . . . . . . . 1 Garrison Access Hacks . | . . . . . . . . . . . . . . . Unauthorized Hacks 29 | . 1 . . 2 4 . . 2 9 5 . . . 6 Terminals 26 | . 1 . . 2 4 . . 2 8 3 . . . 6 Track 2 | . . . . . . . . . 1 . . . . 1 Assimilate 2 | . . . . . . . . . 2 . . . . . Botnet 19 | . 1 . . 2 4 . . 2 4 2 . . . 4 Operators 3 | . . . . . . . . . 1 1 . . . 1 Fabricators . | . . . . . . . . . . . . . . . Repair Stations 1 | . . . . . . . . . . 1 . . . . Patch 1 | . . . . . . . . . . 1 . . . . Recycling Units 2 | . . . . . . . . . 1 1 . . . . Fedlink 2 | . . . . . . . . . 1 1 . . . . Scanalyzers . | . . . . . . . . . . . . . . . Garrison Access . | . . . . . . . . . . . . . . . Data Cores Recovered . | . . . . . . . . . . . . . . . Used . | . . . . . . . . . . . . . . . Hacking Detections 38 | . 1 . . 3 8 2 . 3 6 4 . . 4 7 Full Trace Events 9 | . 1 . . . 3 2 . . . 1 . . . 2 Feedback Events 1 | . . . . . 1 . . . . . . . . . Corruption 1 | . . . . . 1 . . . . . . . . . Feedback Blocked . | . . . . . . . . . . . . . . . Robot Schematics Acquired . | . . . . . . . . . . . . . . . Robots Built . | . . . . . . . . . . . . . . . Authchips . | . . . . . . . . . . . . . . . Time . | . . . . . . . . . . . . . . . Total Robot Build Rating . | . . . . . . . . . . . . . . . Part Schematics Acquired . | . . . . . . . . . . . . . . . Parts Built 1 | . . . . . . . . . . . . . . 1 Authchips . | . . . . . . . . . . . . . . . Time 111 | . . . . . . . . . . . . . . 111 Total Part Build Rating 9 | . . . . . . . . . . . . . . 9 Part Studies Acquired 4 | . . . . 3 . . . . . . . . . 1 Parts Repaired 2 | . . . . . . . . . 1 1 . . . . Time 95 | . . . . . . . . . 61 34 . . . . Parts Recycled . | . . . . . . . . . . . . . . . Recycled Matter . | . . . . . . . . . . . . . . . Retrieved Matter . | . . . . . . . . . . . . . . . Retrieved Components . | . . . . . . . . . . . . . . . Parts Scanalyzed . | . . . . . . . . . . . . . . . Part Schematics Acquired . | . . . . . . . . . . . . . . . Parts Damaged . | . . . . . . . . . . . . . . . Bothacking | -11 -10 -10 -9 -6 -6 -6 -6 -6 -5 -4 -4 -4 -3 -2 ------------ Run | Yrd Mat Sub Scr Fac Ext Cet Arc Hub Fac Fac Upp Upp Res Res Used RIF Installer . | . . . . . . . . . . . . . . . Robots Hacked 1 | . . . . . . . . . . 1 . . . . Non-combat 1 | . . . . . . . . . . 1 . . . . Combat . | . . . . . . . . . . . . . . . Robot Hacks Applied 1 | . . . . . . . . . . 1 . . . . find_chute 1 | . . . . . . . . . . 1 . . . . Relay Couplers Released 4 | . . . . . . . . . 4 . . . . . Programmers 4 | . . . . . . . . . 4 . . . . . Fabnet Peak Effective % . | . . . . . . . . . . . . . . . Robots Rewired 15 | . . . . . 14 . . . . . . . . 1 Allies Hacked . | . . . . . . . . . . . . . . . Hacks Repelled . | . . . . . . . . . . . . . . . Allies | -11 -10 -10 -9 -6 -6 -6 -6 -6 -5 -4 -4 -4 -3 -2 -------- Run | Yrd Mat Sub Scr Fac Ext Cet Arc Hub Fac Fac Upp Upp Res Res Total Allies 31 | . . . . . 24 5 . . 1 . . . . 1 Largest Group 13 | . . . . . 13 12 10 6 1 . . . . 1 Highest-Rated Group 745 | . . . . . 509 745 745 438 10 . . . . 64 Highest-Rated Ally 159 | . . . . . 159 159 152 96 10 . . . . 64 Total Orders 1 | . . . . . . . . . 1 . . . . . EXPLORE 1 | . . . . . . . . . 1 . . . . . Ally Attacks 381 | . . . . . 203 75 28 63 . . . . . 12 Total Damage 9430 | . . . . . 4066 1631 940 2237 . . . . . 556 Kills 60 | . . . . . 24 14 6 12 . . . . . 4 Allies Corrupted 3 | . . . . . . . . 3 . . . . . . Allies Melted . | . . . . . . . . . . . . . . . Intel | -11 -10 -10 -9 -6 -6 -6 -6 -6 -5 -4 -4 -4 -3 -2 ------- Run | Yrd Mat Sub Scr Fac Ext Cet Arc Hub Fac Fac Upp Upp Res Res Active Infowar (turns) 8358 | 27 148 235 2382 853 . . . 350 1130 904 642 197 776 714 Optics 4857 | . . . . 227 . . . 350 1047 904 642 197 776 714 Sensors 2203 | . . . . . . . . . 1018 591 357 . . 237 Structural 3197 | . . . 2344 853 . . . . . . . . . . Seismic 448 | 27 148 235 38 . . . . . . . . . . . Cloaking 418 | . . . . . . . . . . . . . 202 216 Jamming 366 | . . . . . . . . . . 40 . . . 326 Robot Analysis Total 6 | . . . 6 . . . . . . . . . . . Derelict Logs Recovered 6 | . . . 3 . . . . . . . 1 2 . . Drone Launches 4 | . . . . . . . . . 4 . . . . . Drone Recoveries . | . . . . . . . . . . . . . . . Exploration | -11 -10 -10 -9 -6 -6 -6 -6 -6 -5 -4 -4 -4 -3 -2 ------------- Run | Yrd Mat Sub Scr Fac Ext Cet Arc Hub Fac Fac Upp Upp Res Res Turns Passed 11689 | 114 148 235 2382 888 1855 755 375 494 1154 904 642 197 780 766 Spaces Moved 10489 | 60 97 137 1708 682 1343 428 259 392 1142 998 852 216 1233 942 Core 13 | . . . . . . . . . 1 . . . 1 11 Treads 9 | . . . . 9 . . . . . . . . . . Legs 2173 | 60 12 . . . 1014 428 259 392 . 2 . 2 . 4 Wheels 1955 | . 85 137 1708 25 . . . . . . . . . . Hover 5164 | . . . . 486 329 . . . 1141 996 852 214 828 318 Flight 1175 | . . . . 162 . . . . . . . . 404 609 Fastest Speed 18 | 120 120 140 110 30 30 120 120 120 37 52 57 67 21 18 Average Speed 83 | 120 137 140 136 107 100 120 120 120 44 56 60 76 42 33 Slowest Speed 260 | 120 140 140 200 260 120 120 120 120 250 260 67 190 250 167 Overloaded Moves 130 | . . . . . . . . . . . . . 10 120 Propulsion Burnouts . | . . . . . . . . . . . . . . . Robots Hopped 6 | . . . . . . . . . . . . . 2 4 Potential Cave-ins . | . . . . . . . . . . . . . . . Cave-ins Triggered . | . . . . . . . . . . . . . . . Exploration Rate (%) 43 | 4 29 22 84 16 98 96 97 30 25 15 82 20 25 16 Regions Visited 14 Branch Regions 8 Pre-discovered Areas 3 | . . 1 . . . . . . . 1 . 1 . . Known Exits Taken 4 | . . . . 1 1 . . 1 . . . . 1 . Unknown Exits Taken 10 | 1 1 1 1 . . 1 1 . 1 1 1 1 . . Scrap Searched 13 | . . . 10 . . . . . . . 3 . . . Spaces Dug 58 | . . . . 3 2 . . . 12 1 16 . 1 23 Terrain Destroyed 343 | 2 . . . 3 2 2 2 167 47 11 31 . 1 75 Melee 31 | . . . . 3 2 . . . 11 1 . . 1 13 Projectile 6 | . . . . . . 2 2 . 1 . . . . 1 AOE 306 | 2 . . . . . . . 167 35 10 31 . . 61 Terrain Rammed . | . . . . . . . . . . . . . . . Walls Destroyed . | . . . . . . . . . . . . . . . Machines Disabled . | . . . . . . . . . . . . . . . Actions | -11 -10 -10 -9 -6 -6 -6 -6 -6 -5 -4 -4 -4 -3 -2 --------- Run | Yrd Mat Sub Scr Fac Ext Cet Arc Hub Fac Fac Upp Upp Res Res Total 13040 | 82 111 173 1765 808 1741 657 310 408 1747 1268 955 234 1462 1319 Wait 1520 | 5 10 14 6 30 181 173 21 3 479 167 68 3 98 262 Move 10463 | 59 96 136 1707 681 1342 427 258 391 1141 997 851 215 1228 934 Hop 6 | . . . . . . . . . . . . . 2 4 Pick Up 154 | 4 1 17 19 18 18 9 6 1 11 11 7 . 23 9 Fast Attach 71 | 1 . . 1 3 8 3 . 3 14 8 . 2 18 10 Attach 84 | . . . . 12 12 5 2 . 10 10 4 . 8 21 Detach 31 | . . . . 3 1 3 1 1 8 5 1 . 2 6 Swap 124 | . 3 . 9 21 9 7 4 1 26 5 4 3 28 4 Drop 165 | 2 1 1 23 15 14 13 6 2 27 13 5 2 35 6 Fire 60 | 11 . 5 . . 12 3 4 4 4 3 2 . . 12 Melee 277 | . . . . 25 69 14 8 2 26 49 13 9 20 42 Ram 1 | . . . . . 1 . . . . . . . . . Kick . | . . . . . . . . . . . . . . . Crush . | . . . . . . . . . . . . . . . Escape Stasis 4 | . . . . . 4 . . . . . . . . . Rewire 79 | . . . . . 70 . . . . . . . . 9 Trap . | . . . . . . . . . . . . . . . Miscellaneous 1 | . . . . . . . . . 1 . . . . . Route ------- -11/Scrapyard -10/Materials (discovered 2 exits: [*Min] / [*Sub]) -10/Subcaves (discovered 2 exits: *Scr x2) -9/Scraptown -6/Factory (discovered 3 exits: Fac / Low / *Ext) -6/Extension (discovered 3 exits: *Fac x2 / *Cet) -6/Cetus (discovered 3 exits: *Fac x2 / *Arc) -6/Archives (discovered 3 exits: *Fac / *Hub x2) -6/Hub_04(d) -5/Factory (discovered 3 exits: *Fac / *Upp x2) -4/Factory -4/Upper Caves -4/Upper Caves -3/Research (discovered 3 exits: *Res / Qua x2) -2/Research (discovered 3 exits: Acc x3) History --------- Turn | Location | Event 1 | -11/Scrapyard | Discovered new exit (range 3) 115 | -11/Scrapyard | Entered Materials 116 | -10/Materials | Met a group of wandering Federalists 173 | -10/Materials | Discovered new exit (range 14) 253 | -10/Materials | Discovered new exit (range 8) 263 | -10/Materials | Entered Subcaves 264 | -10/Subcaves | Continued accompanying wandering Federalists (4) 264 | -10/Subcaves | Approached by a straggling Scientist 308 | -10/Subcaves | Build established: Mutant 376 | -10/Subcaves | Learned location of Zion (-6) 376 | -10/Subcaves | Met a Zionite searching for "candidates" 488 | -10/Subcaves | Lost 3 allies 494 | -10/Subcaves | Wandering Federalist uncovered a shortcut to Scraptown 498 | -10/Subcaves | Entered Scraptown 617 | -9/Scraptown | Visited SPCMW 640 | -9/Scraptown | Visited Bundlers 695 | -9/Scraptown | Visited Comm Corps 754 | -9/Scraptown | Visited Spacefarers 768 | -9/Scraptown | Visited Fellowship of the Rings 881 | -9/Scraptown | Scanned Subdweller tech in exchange for log data 884 | -9/Scraptown | Learned Research emergency access door positions 885 | -9/Scraptown | Learned location of 1 exit from Factory 1276 | -9/Scraptown | Visited Assassins FH 1322 | -9/Scraptown | Visited Awakened 1345 | -9/Scraptown | Visited UFD Registry 1345 | -9/Scraptown | Registered with UFD as "Nullface" 1391 | -9/Scraptown | Visited Curators Association 1415 | -9/Scraptown | Visited Analyses Database 1460 | -9/Scraptown | Visited Sword Containment 1481 | -9/Scraptown | Visited Scrapoid Research Area 1493 | -9/Scraptown | Visited Abandonware Association 1504 | -9/Scraptown | Learned abandonware demo "OVRCLOCK.EXE" 1511 | -9/Scraptown | Learned abandonware demo "REBOOT5.EXE" 1546 | -9/Scraptown | Visited Supply Room 1567 | -9/Scraptown | Visited Scrap Suit Storage 1598 | -9/Scraptown | Visited Research Penetration Think Tank 1632 | -9/Scraptown | Visited DA-N13 Charitable Foundation 1637 | -9/Scraptown | Found DCF Scrap (28 items) 1672 | -9/Scraptown | Visited Derelict Rescue Squad 1702 | -9/Scraptown | Found DRS Beacon 2751 | -9/Scraptown | Found Prototype Slashing Weapon 2751 | -9/Scraptown | Identified Companion Sword 2803 | -9/Scraptown | Met Optimus 2803 | -9/Scraptown | Accepted into 0bPrime 2871 | -9/Scraptown | Discovered new exit (range 5) 2880 | -9/Scraptown | Entered Factory 2880 | -6/Factory | Evolved 8 slots: Power x1, Propulsion x5, Utility x2 2881 | -6/Factory | Identified exit to Lower Caves 2882 | -6/Factory | Identified exit to Factory 3569 | -6/Factory | Central database locked down 3732 | -6/Factory | Discovered new exit (range 15) 3767 | -6/Factory | Identified exit to Extension 3768 | -6/Factory | Entered Extension 3780 | -6/Extension | Rescued a captive Derelict 3780 | -6/Extension | Rescued a captive Derelict 3858 | -6/Extension | Lost 5 parts (1p4n) 3867 | -6/Extension | Rescued a captive Derelict 3933 | -6/Extension | Lost 3 parts (1p2n) 4107 | -6/Extension | Rescued A7 4132 | -6/Extension | Lost 3 parts (1p2n) 4145 | -6/Extension | Lost 3 allies 4310 | -6/Extension | Build established: Commander-Mutant 4411 | -6/Extension | Spotted B-75 Beast 4467 | -6/Extension | Allies destroyed B-75 Beast 4468 | -6/Extension | Spotted B-75 Beast 4478 | -6/Extension | Allies destroyed B-75 Beast 4659 | -6/Extension | Rescued a captive Derelict 4662 | -6/Extension | Rescued a captive Derelict 4817 | -6/Extension | Rescued a captive Derelict 4819 | -6/Extension | Rescued a captive Derelict 4886 | -6/Extension | Identified exit to Cetus 4901 | -6/Extension | Rescued a captive Derelict 4903 | -6/Extension | Rescued a captive Derelict 4997 | -6/Extension | Discovered exit to Factory (range 10) 5191 | -6/Extension | Door terminal overloaded 5191 | -6/Extension | Discovered exit to Factory (range 5) 5623 | -6/Extension | Entered Cetus 5623 | -6/Cetus | Accompanied by 12 allies (A7) 5628 | -6/Cetus | Acquired a Cetus Manufacturing Module code from A7 5639 | -6/Cetus | Spotted Cetus Guard 5640 | -6/Cetus | Spotted Cetus Guard 5641 | -6/Cetus | Spotted Cetus Guard 5642 | -6/Cetus | Spotted Cetus Guard 5657 | -6/Cetus | Allies destroyed Cetus Guard 5665 | -6/Cetus | Allies destroyed Cetus Guard 5670 | -6/Cetus | Allies destroyed Cetus Guard 5672 | -6/Cetus | Allies destroyed Cetus Guard 5694 | -6/Cetus | Lost 5 allies 5699 | -6/Cetus | Lost 4 parts (3n1u) 5750 | -6/Cetus | Discovered exit to Factory (range 16) 5966 | -6/Cetus | Started Cetus Manufacturing Module 5984 | -6/Cetus | Build established: Scavenger-Mutant 5991 | -6/Cetus | Manufactured an Enhanced Grunt 6016 | -6/Cetus | Manufactured an Enhanced Grunt 6041 | -6/Cetus | Manufactured an Enhanced Grunt 6066 | -6/Cetus | Manufactured an Enhanced Grunt 6091 | -6/Cetus | Manufactured an Enhanced Grunt 6123 | -6/Cetus | Escorted A7 to Cetus Mainframe 6228 | -6/Cetus | Discovered new exit (range 16) 6255 | -6/Cetus | Discovered exit to Factory (range 16) 6261 | -6/Cetus | Met Revision 17 6373 | -6/Cetus | Security sweep announced 6378 | -6/Cetus | Entered Archives 6378 | -6/Archives | Accompanied by 10 allies (A7) 6385 | -6/Archives | Received a hacking code to weaken MAIN.C 6404 | -6/Archives | Core integrity fell below 50% 6427 | -6/Archives | Unable to access archive contents 6442 | -6/Archives | Unable to access archive contents 6450 | -6/Archives | Found Prototype Device 6452 | -6/Archives | Lost 3 allies 6473 | -6/Archives | Discovered exit to Factory (range 16) 6480 | -6/Archives | Unable to access archive contents 6534 | -6/Archives | Unable to access archive contents 6538 | -6/Archives | Discovered new exit (range 16) 6580 | -6/Archives | Discovered new exit (range 15) 6753 | -6/Archives | Entered Hub_04(d) 6753 | -6/Hub_04(d) | Accompanied by 6 allies 6895 | -6/Hub_04(d) | Identified Exp. Thermal Shield 7050 | -6/Hub_04(d) | Spotted B-75 Beast 7076 | -6/Hub_04(d) | Allies destroyed B-75 Beast 7137 | -6/Hub_04(d) | Discovered exit to Factory (range 18) 7164 | -6/Hub_04(d) | Network Hub disabled 7232 | -6/Hub_04(d) | Spotted Lightning 7237 | -6/Hub_04(d) | Spotted Lightning 7238 | -6/Hub_04(d) | Spotted Lightning 7247 | -6/Hub_04(d) | Entered Factory 7247 | -5/Factory | Evolved 2 slots: Propulsion x1, Utility x1 7265 | -5/Factory | Lost 6 allies 7273 | -5/Factory | Lost 3 parts (1p2n) 7558 | -5/Factory | Repaired Broken Gravmag System 7811 | -5/Factory | Loaded intel: 8 recycling unit locations 8064 | -5/Factory | Discovered new exit (range 17) 8359 | -5/Factory | Discovered new exit (range 20) 8378 | -5/Factory | Identified exit to Upper Caves 8401 | -5/Factory | Entered another Factory area 8401 | -4/Factory | Evolved 2 slots: Utility x2 8489 | -4/Factory | Loaded intel: 8 recycling unit locations 8489 | -4/Factory | Learned location of Protoforge (-3) 8632 | -4/Factory | Lost 3 parts (3n) 8708 | -4/Factory | Repaired Mic. Antimatter Reactor 9257 | -4/Factory | Discovered new exit (range 15) 9305 | -4/Factory | Entered Upper Caves 9499 | -4/Upper Caves | Attracted the attention of an 0b10 checkpoint 9904 | -4/Upper Caves | Learned location of 1 exit from Research 9925 | -4/Upper Caves | Discovered new exit (range 14) 9927 | -4/Upper Caves | Encountered a Warlord checkpoint 9947 | -4/Upper Caves | Entered another Upper Caves area 9947 | -4/Upper Caves | Discovered new exit (range 16) 9948 | -4/Upper Caves | Encountered a Warlord checkpoint 10070 | -4/Upper Caves | Learned location of Armory (-4) 10124 | -4/Upper Caves | Learned location of 1 exit from Research 10144 | -4/Upper Caves | Entered Research 10144 | -3/Research | Evolved 2 slots: Utility x2 10145 | -3/Research | Identified exit to Quarantine 10201 | -3/Research | Found Prototype Processor 10201 | -3/Research | Identified Spectral Analyzer 10205 | -3/Research | Found Faulty Spectral Analyzer 10208 | -3/Research | Found Spectral Analyzer 10344 | -3/Research | Revision forces began assault on 0b10 10355 | -3/Research | Met up with Revision 17++ 10684 | -3/Research | Discovered new exit (range 6) 10844 | -3/Research | Research terminal network offline 10891 | -3/Research | Spotted B-86 Titan 10914 | -3/Research | Spotted Executioner 10915 | -3/Research | Spotted Striker 10923 | -3/Research | Identified exit to Research 10924 | -3/Research | Entered another Research area 10924 | -2/Research | Evolved 2 slots: Propulsion x1, Utility x1 11092 | -2/Research | Identified exit to Access 11105 | -2/Research | Spotted B-90 Cyclops 11180 | -2/Research | System corruption reached 10% 11217 | -2/Research | Lost 12 parts (2p5n5u) 11437 | -2/Research | Fabricated Exp. Actuator Array (x1) 11557 | -2/Research | Found Unknown Device 11656 | -2/Research | Identified Quantum Capacitor 11659 | -2/Research | Core integrity fell below 50% 11679 | -2/Research | Core integrity fell below 20% 11689 | -2/Research | Released all parts (6) 11690 | -2/Research | Destroyed by S-43 Plague with Heavy Machine Gun Last Messages --------------- 11667_ Gravmag Array destroyed. 11670_ System corrupted: Component data lost. 11674_ S-43 Plague destroyed. 11675_ Companion Sword destroyed. Companion Sword: "Time to go to the place where all swords go after they die..." 11679_ Acquired Adv. VSS Leg. 11683_ ALERT: Potential suspicious activity detected, Programmers report to Research Zone 1T. 11683_ Slug penetrates Wall. 11684_ Acquired Adv. VSS Leg. 11685_ System corrupted: Matter fused (-7). 11685_ Slug penetrates Wall. 11689_ Released Adv. VSS Leg. 11689_ Released Imp. Melee Analysis Suite. 11689_ Released Spectral Analyzer. 11689_ Released Adv. Hacking Suite. 11689_ Released Adv. VSS Leg. Map ----- +----------------------------------------------------+ | ??????????????????????????????# "" " | | ??????????????????????????????# """" | | ???????????????????##?????????# & """" | | ?????????##########"#?????????# # # | | ?????????# "#######???# # | | ?????????# ###############+###### # | | ?????????# # #= | | ?????????# # | | ?????????# # | | ?????????# * + """" # | | ?????????# # """" ########## | | ?????????# # """" #????????# | | ?????????#"######### """" #????????# # | | ?????????##?# #????????# # "" | | ????????????# #????????# # "" | | ????????????# | ##???????# # " | | ???########## !!* ##???????# ##### | | ???# # *################???????# #???? | | ???# %# ###########?###????????# #???? | | ???# # # #????????????# ##### | | ???# ! # # #????????????# | | ???# # # #????????????# | | ???# # g#s != #????????????# | | ???# + *p% = ##???????????# | | ???# # # s = ##???????????#########+ | | ???# # # @ ##??????????????# | | ???########## # s #???????????????# | | ?????????# ########s###??????????????# """ | | ?????????# #????# #??????????????# """ | | ?????????# ###### ##?????????????# """ | | ?????????# " ##?????????????# | | ????????######+######## ##?????????????# | | ????????# ## #??????????????# | | ????????# ####+###??????????????# | | ????????# # #??????????????# | | ????????# # ! #??????????????# ] " | | ????????# * # #??????????????# " | | ????????# # ]#??????????????####### | | ????????# # #????????????????????? | | ????????# # #????????????????????? | | ????????# ########????????????????????? | | ????????# #???????????????????????????? | | ????????# = #???????????????????????????? | | ????????# #???????????????????????????? | | ????????##############???????????????????????????? | | ?????????????????????????????????????????????????? | | | | | | | | | +----------------------------------------------------+ Best States ------------- Heat Dissipation 84 Energy Generation 49 Energy Capacity 550 Matter Stores 300 Matter Capacity 300 Sight Range 24 Robot Scan Range 16 Terrain Scan Density 10 Jamming Range 16 Cloak Strength 2 Power Amplification 30 Additional Mass Support 9 Base Temperature (-) 200 Resistance: KI 25 Melee Speed Boost 20 Evasion (%) 77 Melee Accuracy 14 Recoil Reduction 1 Force Boost 20 Offensive Hacking 14 Item Schematics ----------------- None Robot Schematics ------------------ None Fabricated ------------ Exp. Actuator Array | x1 | -2/Research | Preloaded Repaired ---------- Gravmag System | 93% | -5/Factory | Broken Mic. Antimatter Reactor | 5% | -4/Factory Studied --------- Flight Unit | -6/Factory | Hacked Nuclear Pulse Thruster | -6/Factory | Hacked Airjet | -6/Factory | Hacked Q-thruster | -2/Research | Hacked Alien Tech Used ----------------- None Achievements -------------- Deadly Force Just Shoot The Terminal Main Advantage Prison Break Project G-00 Revising The Future Revolutionary Research Challenges ------------ None Game ------ Seed WeaponPersonalTelecube Manual? 0 Play Time 02:33:54 Cumulative 62.6 hours Start 2026.01.03 @ 00:18:18 End 2026.01.03 @ 02:54:43 Sessions 1 Manual Loads 0 Difficulty Rogue Special Mode None Game No. 79 Rogue 79 Adventurer 0 Explorer 0 Win Type - Total 1 Types 1/0/0/0/0/0/0/0/0/0 Lore% 43 Gallery% 47 Achievement% 37 Wizard Run 0 Options --------- Layout 2 ASCII 0 Keyboard 1 Movement Numpad Keybinds 0 Fullscreen 2 Font 24/Smallcaps Map View 50x44 Zoom Use 0% Tactical HUD 1 Map Filters NONE Filters NONE Steam 1 RUN: ef8fa4f2-b102-4136-af83-25d1f48ac6ea